[Event "Titled Tuesday Blitz July 18 Late 2023"]
[White "Luong Phuong Hanh"]
[Black "Ambartsumova, Karina"]
[WhiteFideId "12401013"]
[BlackFideId "4166299"]
[WhiteElo "2401"]
[BlackElo "2548"]
[Result "0-1"]
[Round "10"]
[TimeControl "180+2"]
[Date "2023.07.18"]
[WhiteClock "0:00:00"]
[BlackClock "0:00:52"]
[Board "72"]

1. d4 {[%clk 0:00:50]}  d6 {[%clk 0:02:57]} 2. Nf3 {[%clk 0:00:50]}  g6 {[%clk 0:02:57]} 3. g3 {[%clk 0:00:49]}  Bg7 {[%clk 0:02:57]} 4. Bg2 {[%clk 0:00:49]}  Nf6 {[%clk 0:02:56]} 5. O-O {[%clk 0:00:49]}  O-O {[%clk 0:02:57]} 6. a4 {[%clk 0:00:49]}  c6 {[%clk 0:02:57]} 7. a5 {[%clk 0:00:48]}  a6 {[%clk 0:02:57]} 8. Nc3 {[%clk 0:00:47]}  d5 {[%clk 0:02:50]} 9. Ne5 {[%clk 0:00:46]}  Nbd7 {[%clk 0:02:47]} 10. Nd3 {[%clk 0:00:46]}  Re8 {[%clk 0:02:43]} 11. Bf4 {[%clk 0:00:45]}  Nh5 {[%clk 0:02:42]} 12. Bd2 {[%clk 0:00:45]}  e5 {[%clk 0:02:40]} 13. dxe5 {[%clk 0:00:46]}  Nxe5 {[%clk 0:02:40]} 14. Nxe5 {[%clk 0:00:46]}  Bxe5 {[%clk 0:02:41]} 15. Na4 {[%clk 0:00:38]}  Bf5 {[%clk 0:02:36]} 16. Nb6 {[%clk 0:00:38]}  Rb8 {[%clk 0:02:34]} 17. c3 {[%clk 0:00:38]}  Ng7 {[%clk 0:02:29]} 18. Be3 {[%clk 0:00:36]}  Bc7 {[%clk 0:02:26]} 19. Qb3 {[%clk 0:00:36]}  Be4 {[%clk 0:02:24]} 20. Rfd1 {[%clk 0:00:34]}  Bxg2 {[%clk 0:02:24]} 21. Kxg2 {[%clk 0:00:34]}  Nf5 {[%clk 0:02:22]} 22. Bc5 {[%clk 0:00:35]}  Rxe2 {[%clk 0:02:16]} 23. Re1 {[%clk 0:00:35]}  Qe8 {[%clk 0:02:13]} 24. Kf1 {[%clk 0:00:33]}  Qe4 {[%clk 0:02:02]} 25. Be3 {[%clk 0:00:17]}  Nxe3+ {[%clk 0:01:18]} 26. Kxe2 {[%clk 0:00:16]}  Nc4+ {[%clk 0:01:18]} 27. Kd1 {[%clk 0:00:14]}  Qd3+ {[%clk 0:01:17]} 28. Kc1 {[%clk 0:00:15]}  Qd2+ {[%clk 0:01:18]} 29. Kb1 {[%clk 0:00:15]}  Qxe1+ {[%clk 0:01:18]} 30. Ka2 {[%clk 0:00:16]}  Qe4 {[%clk 0:01:17]} 31. Nd7 {[%clk 0:00:14]}  Kg7 {[%clk 0:01:03]} 32. Nxb8 {[%clk 0:00:13]}  Bxb8 {[%clk 0:01:04]} 33. Qxb7 {[%clk 0:00:13]}  Be5 {[%clk 0:01:00]} 34. Qxc6 {[%clk 0:00:12]}  Qc2 {[%clk 0:00:59]} 35. Rb1 {[%clk 0:00:00]}  Bxc3 {[%clk 0:00:52]} 0-1


[Site "https://www.chess.com"]

[Event "Titled Tuesday Blitz July 18 Late 2023"]
[White "Ismayil, Malak"]
[Black "Jonkman, Harmen"]
[WhiteFideId "13412604"]
[BlackFideId "1002708"]
[WhiteElo "2501"]
[BlackElo "2411"]
[Result "1-0"]
[Round "10"]
[TimeControl "180+2"]
[Date "2023.07.18"]
[WhiteClock "0:00:28"]
[BlackClock "0:00:00"]
[Board "73"]

1. e4 {[%clk 0:03:00]}  e5 {[%clk 0:02:59]} 2. Nf3 {[%clk 0:03:00]}  Nc6 {[%clk 0:03:00]} 3. Bc4 {[%clk 0:03:01]}  Bc5 {[%clk 0:02:59]} 4. d3 {[%clk 0:03:01]}  Nf6 {[%clk 0:03:00]} 5. Nc3 {[%clk 0:03:02]}  h6 {[%clk 0:02:58]} 6. O-O {[%clk 0:03:03]}  a6 {[%clk 0:02:57]} 7. Be3 {[%clk 0:03:03]}  Ba7 {[%clk 0:02:54]} 8. Re1 {[%clk 0:03:02]}  d6 {[%clk 0:02:54]} 9. h3 {[%clk 0:03:01]}  O-O {[%clk 0:02:53]} 10. d4 {[%clk 0:03:01]}  Re8 {[%clk 0:02:37]} 11. dxe5 {[%clk 0:03:00]}  Nxe5 {[%clk 0:02:26]} 12. Nxe5 {[%clk 0:02:59]}  dxe5 {[%clk 0:02:26]} 13. Bxa7 {[%clk 0:02:58]}  Rxa7 {[%clk 0:02:24]} 14. Qf3 {[%clk 0:02:55]}  c6 {[%clk 0:02:14]} 15. Rad1 {[%clk 0:02:54]}  Qc7 {[%clk 0:02:10]} 16. a4 {[%clk 0:02:45]}  Ra8 {[%clk 0:02:05]} 17. Bb3 {[%clk 0:02:44]}  Be6 {[%clk 0:02:05]} 18. Bxe6 {[%clk 0:02:42]}  Rxe6 {[%clk 0:02:05]} 19. Rd3 {[%clk 0:02:37]}  Rd8 {[%clk 0:01:57]} 20. Red1 {[%clk 0:02:38]}  Red6 {[%clk 0:01:55]} 21. b3 {[%clk 0:02:33]}  R8d7 {[%clk 0:01:50]} 22. Rxd6 {[%clk 0:02:25]}  Rxd6 {[%clk 0:01:50]} 23. Rxd6 {[%clk 0:02:23]}  Qxd6 {[%clk 0:01:50]} 24. Qd3 {[%clk 0:02:24]}  Qb4 {[%clk 0:01:45]} 25. f3 {[%clk 0:02:22]}  h5 {[%clk 0:01:40]} 26. Kf2 {[%clk 0:02:21]}  h4 {[%clk 0:01:40]} 27. Ne2 {[%clk 0:02:20]}  Qc5+ {[%clk 0:01:38]} 28. Kf1 {[%clk 0:02:14]}  Nh5 {[%clk 0:01:35]} 29. Qd8+ {[%clk 0:02:11]}  Kh7 {[%clk 0:01:33]} 30. Qxh4 {[%clk 0:02:11]}  Kg6 {[%clk 0:01:32]} 31. Qg4+ {[%clk 0:02:07]}  Kh6 {[%clk 0:01:32]} 32. h4 {[%clk 0:01:51]}  Qe3 {[%clk 0:01:25]} 33. Qf5 {[%clk 0:01:42]}  f6 {[%clk 0:01:13]} 34. g4 {[%clk 0:01:26]}  g6 {[%clk 0:00:44]} 35. Qc8 {[%clk 0:01:15]}  Qxf3+ {[%clk 0:00:43]} 36. Ke1 {[%clk 0:01:12]}  Qh1+ {[%clk 0:00:23]} 37. Kd2 {[%clk 0:01:11]}  Qxh4 {[%clk 0:00:21]} 38. Qh8+ {[%clk 0:01:04]}  Kg5 {[%clk 0:00:21]} 39. gxh5 {[%clk 0:01:05]}  Qxh5 {[%clk 0:00:15]} 40. Qc8 {[%clk 0:01:00]}  Qf3 {[%clk 0:00:13]} 41. Qxb7 {[%clk 0:00:58]}  Qxe4 {[%clk 0:00:13]} 42. Qb6 {[%clk 0:00:57]}  f5 {[%clk 0:00:11]} 43. Qg1+ {[%clk 0:00:50]}  Kf6 {[%clk 0:00:10]} 44. Qf2 {[%clk 0:00:38]}  f4 {[%clk 0:00:08]} 45. c4 {[%clk 0:00:35]}  g5 {[%clk 0:00:05]} 46. Qc5 {[%clk 0:00:32]}  g4 {[%clk 0:00:03]} 47. Qf8+ {[%clk 0:00:32]}  Kg5 {[%clk 0:00:03]} 48. Qg7+ {[%clk 0:00:31]}  Kh5 {[%clk 0:00:00]} 49. Qf7+ {[%clk 0:00:28]} 1-0


[Site "https://www.chess.com"]

[Event "Titled Tuesday Blitz July 18 Late 2023"]
[White "Romero Ruscalleda, Josep"]
[Black "Shubenkova, Veronika"]
[WhiteFideId "2231859"]
[BlackFideId "44124040"]
[WhiteElo "2384"]
[BlackElo "2499"]
[Result "0-1"]
[Round "10"]
[TimeControl "180+2"]
[Date "2023.07.18"]
[WhiteClock "0:00:00"]
[BlackClock "0:00:04"]
[Board "74"]

1. e4 {[%clk 0:03:00]}  e6 {[%clk 0:02:59]} 2. d4 {[%clk 0:03:00]}  d5 {[%clk 0:03:00]} 3. e5 {[%clk 0:03:01]}  c5 {[%clk 0:03:00]} 4. c3 {[%clk 0:03:01]}  Nc6 {[%clk 0:03:00]} 5. Be3 {[%clk 0:03:02]}  a6 {[%clk 0:03:01]} 6. Nf3 {[%clk 0:03:00]}  cxd4 {[%clk 0:03:01]} 7. cxd4 {[%clk 0:02:59]}  b5 {[%clk 0:03:01]} 8. Bd3 {[%clk 0:02:57]}  Bb7 {[%clk 0:03:01]} 9. O-O {[%clk 0:02:57]}  Nge7 {[%clk 0:03:01]} 10. a3 {[%clk 0:02:55]}  Ng6 {[%clk 0:03:01]} 11. Nc3 {[%clk 0:02:53]}  Be7 {[%clk 0:03:01]} 12. Rc1 {[%clk 0:02:52]}  Na5 {[%clk 0:03:01]} 13. Nd2 {[%clk 0:02:47]}  O-O {[%clk 0:03:00]} 14. f4 {[%clk 0:02:46]}  Nc4 {[%clk 0:02:56]} 15. Nxc4 {[%clk 0:02:45]}  dxc4 {[%clk 0:02:51]} 16. Bb1 {[%clk 0:02:41]}  Qb6 {[%clk 0:02:44]} 17. Qe2 {[%clk 0:02:32]}  Qa5 {[%clk 0:02:32]} 18. f5 {[%clk 0:02:27]}  exf5 {[%clk 0:02:31]} 19. Bxf5 {[%clk 0:02:26]}  Rad8 {[%clk 0:02:30]} 20. e6 {[%clk 0:02:09]}  Qb6 {[%clk 0:02:23]} 21. d5 {[%clk 0:01:51]}  Bc5 {[%clk 0:02:22]} 22. exf7+ {[%clk 0:01:51]}  Rxf7 {[%clk 0:02:04]} 23. Bxc5 {[%clk 0:01:45]}  Qxc5+ {[%clk 0:02:04]} 24. Kh1 {[%clk 0:01:46]}  Bc8 {[%clk 0:01:56]} 25. Be6 {[%clk 0:01:04]}  Bxe6 {[%clk 0:01:53]} 26. Qxe6 {[%clk 0:00:57]}  Qe7 {[%clk 0:01:50]} 27. Rxf7 {[%clk 0:00:54]}  Qxf7 {[%clk 0:01:50]} 28. Qxa6 {[%clk 0:00:53]}  Nf4 {[%clk 0:01:30]} 29. Rf1 {[%clk 0:00:46]}  Qe7 {[%clk 0:01:16]} 30. Qxb5 {[%clk 0:00:32]}  Qg5 {[%clk 0:01:16]} 31. Rg1 {[%clk 0:00:26]}  h5 {[%clk 0:01:02]} 32. Qxc4 {[%clk 0:00:24]}  h4 {[%clk 0:01:02]} 33. Ne4 {[%clk 0:00:20]}  Qe5 {[%clk 0:00:56]} 34. d6+ {[%clk 0:00:20]}  Kh8 {[%clk 0:00:50]} 35. Rf1 {[%clk 0:00:20]}  h3 {[%clk 0:00:46]} 36. g3 {[%clk 0:00:19]}  Ng6 {[%clk 0:00:41]} 37. d7 {[%clk 0:00:17]}  Rxd7 {[%clk 0:00:36]} 38. Re1 {[%clk 0:00:10]}  Re7 {[%clk 0:00:32]} 39. Qc8+ {[%clk 0:00:07]}  Kh7 {[%clk 0:00:20]} 40. Qxh3+ {[%clk 0:00:08]}  Kg8 {[%clk 0:00:20]} 41. Qc8+ {[%clk 0:00:08]}  Nf8 {[%clk 0:00:19]} 42. Qc4+ {[%clk 0:00:06]}  Kh8 {[%clk 0:00:17]} 43. Qe2 {[%clk 0:00:06]}  Qd5 {[%clk 0:00:14]} 44. Kg1 {[%clk 0:00:05]}  Qd4+ {[%clk 0:00:14]} 45. Kg2 {[%clk 0:00:05]}  Qd5 {[%clk 0:00:14]} 46. Qf3 {[%clk 0:00:04]}  Ng6 {[%clk 0:00:12]} 47. Re2 {[%clk 0:00:04]}  Rf7 {[%clk 0:00:10]} 48. Qc3 {[%clk 0:00:03]}  Qd1 {[%clk 0:00:09]} 49. Qc8+ {[%clk 0:00:02]}  Nf8 {[%clk 0:00:04]} 50. Qh3+ {[%clk 0:00:00]}  Kg8 {[%clk 0:00:04]} 0-1


[Site "https://www.chess.com"]

[Event "Titled Tuesday Blitz July 18 Late 2023"]
[White "Gerbelli Neto, Eduardo"]
[Black "Kaplan, Avi Harrison"]
[WhiteFideId "2103281"]
[BlackFideId "30934559"]
[WhiteElo "2384"]
[BlackElo "2479"]
[Result "0-1"]
[Round "10"]
[TimeControl "180+2"]
[Date "2023.07.18"]
[WhiteClock "0:02:00"]
[BlackClock "0:02:10"]
[Board "75"]

1. e4 {[%clk 0:03:00]}  d6 {[%clk 0:02:58]} 2. Nc3 {[%clk 0:03:00]}  g6 {[%clk 0:02:58]} 3. f4 {[%clk 0:03:00]}  a6 {[%clk 0:02:57]} 4. Nf3 {[%clk 0:03:01]}  b5 {[%clk 0:02:57]} 5. g3 {[%clk 0:02:59]}  c5 {[%clk 0:02:57]} 6. Bg2 {[%clk 0:02:59]}  h5 {[%clk 0:02:56]} 7. e5 {[%clk 0:02:54]}  d5 {[%clk 0:02:54]} 8. e6 {[%clk 0:02:44]}  Bxe6 {[%clk 0:02:49]} 9. Ng5 {[%clk 0:02:45]}  Bg4 {[%clk 0:02:47]} 10. Bf3 {[%clk 0:02:45]}  Bxf3 {[%clk 0:02:43]} 11. Qxf3 {[%clk 0:02:46]}  e6 {[%clk 0:02:42]} 12. O-O {[%clk 0:02:38]}  Nc6 {[%clk 0:02:36]} 13. d3 {[%clk 0:02:38]}  Nd4 {[%clk 0:02:36]} 14. Qf2 {[%clk 0:02:39]}  h4 {[%clk 0:02:34]} 15. g4 {[%clk 0:02:32]}  h3 {[%clk 0:02:27]} 16. Qg3 {[%clk 0:02:13]}  b4 {[%clk 0:02:22]} 17. f5 {[%clk 0:02:04]}  bxc3 {[%clk 0:02:11]} 18. Qe5 {[%clk 0:02:00]}  f6 {[%clk 0:02:10]} 0-1


[Site "https://www.chess.com"]

[Event "Titled Tuesday Blitz July 18 Late 2023"]
[White "ExchangeAB"]
[Black "Rodriguez Fontecha, Marcos"]
[BlackFideId "2256576"]
[WhiteElo "2376"]
[BlackElo "2475"]
[Result "0-1"]
[Round "10"]
[TimeControl "180+2"]
[Date "2023.07.18"]
[WhiteClock "0:00:00"]
[BlackClock "0:00:46"]
[Board "76"]

1. d4 {[%clk 0:03:00]}  Nf6 {[%clk 0:02:59]} 2. Nc3 {[%clk 0:03:00]}  d6 {[%clk 0:03:00]} 3. e4 {[%clk 0:03:00]}  g6 {[%clk 0:02:55]} 4. Be2 {[%clk 0:02:59]}  Bg7 {[%clk 0:02:55]} 5. h4 {[%clk 0:02:59]}  h5 {[%clk 0:02:54]} 6. Nf3 {[%clk 0:02:59]}  Nc6 {[%clk 0:02:52]} 7. Bg5 {[%clk 0:02:59]}  Bg4 {[%clk 0:02:51]} 8. Qd2 {[%clk 0:02:58]}  Bxf3 {[%clk 0:02:48]} 9. Bxf3 {[%clk 0:02:59]}  Nd7 {[%clk 0:02:49]} 10. Ne2 {[%clk 0:02:56]}  Qc8 {[%clk 0:02:41]} 11. g3 {[%clk 0:02:47]}  e5 {[%clk 0:02:41]} 12. d5 {[%clk 0:02:46]}  Nd4 {[%clk 0:02:40]} 13. Nxd4 {[%clk 0:02:46]}  exd4 {[%clk 0:02:41]} 14. Bg2 {[%clk 0:02:27]}  Ne5 {[%clk 0:02:26]} 15. O-O-O {[%clk 0:02:14]}  c5 {[%clk 0:02:15]} 16. f4 {[%clk 0:01:56]}  Nc4 {[%clk 0:02:05]} 17. Qd3 {[%clk 0:01:54]}  Ne3 {[%clk 0:02:04]} 18. Bh3 {[%clk 0:01:53]}  Qc7 {[%clk 0:02:03]} 19. f5 {[%clk 0:01:03]}  Nxd1 {[%clk 0:01:47]} 20. Rxd1 {[%clk 0:01:04]}  Be5 {[%clk 0:01:47]} 21. Qb5+ {[%clk 0:00:55]}  Kf8 {[%clk 0:01:30]} 22. fxg6 {[%clk 0:00:55]}  fxg6 {[%clk 0:01:30]} 23. Rf1+ {[%clk 0:00:53]}  Kg7 {[%clk 0:01:30]} 24. Be6 {[%clk 0:00:30]}  Rhf8 {[%clk 0:01:30]} 25. Kd2 {[%clk 0:00:25]}  c4 {[%clk 0:01:26]} 26. Rxf8 {[%clk 0:00:24]}  Rxf8 {[%clk 0:01:27]} 27. Bf4 {[%clk 0:00:17]}  Bxf4+ {[%clk 0:01:18]} 28. gxf4 {[%clk 0:00:18]}  Rxf4 {[%clk 0:01:18]} 29. Qe8 {[%clk 0:00:19]}  Rf8 {[%clk 0:01:18]} 30. Qb5 {[%clk 0:00:15]}  a6 {[%clk 0:01:15]} 31. Qb4 {[%clk 0:00:13]}  c3+ {[%clk 0:01:10]} 32. bxc3 {[%clk 0:00:12]}  Qxc3+ {[%clk 0:00:53]} 33. Qxc3 {[%clk 0:00:11]}  dxc3+ {[%clk 0:00:54]} 34. Kxc3 {[%clk 0:00:11]}  Rf4 {[%clk 0:00:54]} 35. Kd4 {[%clk 0:00:08]}  Rxh4 {[%clk 0:00:53]} 36. Bc8 {[%clk 0:00:08]}  Rh2 {[%clk 0:00:49]} 37. c4 {[%clk 0:00:06]}  Rxa2 {[%clk 0:00:49]} 38. c5 {[%clk 0:00:03]}  Ra4+ {[%clk 0:00:46]} 39. Kd3 {[%clk 0:00:03]}  dxc5 {[%clk 0:00:46]} 40. e5 {[%clk 0:00:00]}  Rd4+ {[%clk 0:00:46]} 0-1


[Site "https://www.chess.com"]

[Event "Titled Tuesday Blitz July 18 Late 2023"]
[White "Adireddy Arjun"]
[Black "Melnichuk, Mikhail"]
[WhiteFideId "25647709"]
[BlackFideId "14117533"]
[WhiteElo "2364"]
[BlackElo "2472"]
[Result "0-1"]
[Round "10"]
[TimeControl "180+2"]
[Date "2023.07.18"]
[WhiteClock "0:01:02"]
[BlackClock "0:01:15"]
[Board "79"]

1. Nf3 {[%clk 0:02:53]}  Nf6 {[%clk 0:03:00]} 2. g3 {[%clk 0:02:51]}  d5 {[%clk 0:02:59]} 3. Bg2 {[%clk 0:02:52]}  c6 {[%clk 0:02:59]} 4. O-O {[%clk 0:02:52]}  g6 {[%clk 0:02:59]} 5. d4 {[%clk 0:02:53]}  Bg7 {[%clk 0:02:59]} 6. c4 {[%clk 0:02:53]}  O-O {[%clk 0:03:00]} 7. Nc3 {[%clk 0:02:53]}  Bf5 {[%clk 0:02:43]} 8. b3 {[%clk 0:02:50]}  Ne4 {[%clk 0:02:41]} 9. Bb2 {[%clk 0:02:48]}  Nd7 {[%clk 0:02:40]} 10. Nh4 {[%clk 0:02:47]}  Nxc3 {[%clk 0:02:37]} 11. Bxc3 {[%clk 0:02:48]}  Be6 {[%clk 0:02:36]} 12. cxd5 {[%clk 0:02:44]}  cxd5 {[%clk 0:02:34]} 13. Nf3 {[%clk 0:02:44]}  Rc8 {[%clk 0:02:32]} 14. Rc1 {[%clk 0:02:43]}  Bg4 {[%clk 0:02:29]} 15. h3 {[%clk 0:02:38]}  Bxf3 {[%clk 0:02:29]} 16. Bxf3 {[%clk 0:02:39]}  e6 {[%clk 0:02:30]} 17. Qd2 {[%clk 0:02:32]}  Nb8 {[%clk 0:02:27]} 18. Bb4 {[%clk 0:02:29]}  Re8 {[%clk 0:02:26]} 19. Rxc8 {[%clk 0:02:29]}  Qxc8 {[%clk 0:02:24]} 20. Rc1 {[%clk 0:02:30]}  Nc6 {[%clk 0:02:24]} 21. Bc3 {[%clk 0:02:28]}  Qd7 {[%clk 0:02:21]} 22. e3 {[%clk 0:02:27]}  Rc8 {[%clk 0:02:20]} 23. Bb2 {[%clk 0:02:27]}  Bf8 {[%clk 0:02:19]} 24. Be2 {[%clk 0:02:24]}  a6 {[%clk 0:02:15]} 25. Bf3 {[%clk 0:02:23]}  Bb4 {[%clk 0:02:02]} 26. Qe2 {[%clk 0:02:13]}  Ne7 {[%clk 0:01:59]} 27. Qd1 {[%clk 0:02:08]}  b5 {[%clk 0:01:53]} 28. Rxc8+ {[%clk 0:01:58]}  Qxc8 {[%clk 0:01:52]} 29. Qc1 {[%clk 0:01:59]}  Qxc1+ {[%clk 0:01:50]} 30. Bxc1 {[%clk 0:01:59]}  f5 {[%clk 0:01:50]} 31. Kf1 {[%clk 0:01:59]}  Kf7 {[%clk 0:01:49]} 32. Ke2 {[%clk 0:01:59]}  Nc6 {[%clk 0:01:49]} 33. Kd1 {[%clk 0:01:59]}  Bc3 {[%clk 0:01:46]} 34. Be2 {[%clk 0:01:56]}  Ke7 {[%clk 0:01:40]} 35. Bd2 {[%clk 0:01:45]}  Bxd2 {[%clk 0:01:35]} 36. Kxd2 {[%clk 0:01:46]}  Kd6 {[%clk 0:01:34]} 37. f4 {[%clk 0:01:36]}  Nb4 {[%clk 0:01:29]} 38. a3 {[%clk 0:01:32]}  Nc6 {[%clk 0:01:29]} 39. b4 {[%clk 0:01:22]}  Ne7 {[%clk 0:01:28]} 40. h4 {[%clk 0:01:19]}  Nc8 {[%clk 0:01:25]} 41. Bd1 {[%clk 0:01:17]}  Nb6 {[%clk 0:01:25]} 42. Bb3 {[%clk 0:01:17]}  Nc4+ {[%clk 0:01:25]} 43. Kd3 {[%clk 0:01:12]}  Nxa3 {[%clk 0:01:23]} 44. Kc3 {[%clk 0:01:12]}  Nc4 {[%clk 0:01:23]} 45. Kd3 {[%clk 0:01:12]}  a5 {[%clk 0:01:20]} 46. bxa5 {[%clk 0:01:11]}  Nxa5 {[%clk 0:01:21]} 47. Bd1 {[%clk 0:01:10]}  Nc4 {[%clk 0:01:15]} 48. g4 {[%clk 0:01:03]}  Nb2+ {[%clk 0:01:14]} 49. Kd2 {[%clk 0:01:02]}  Nxd1 {[%clk 0:01:15]} 0-1


[Site "https://www.chess.com"]

[Event "Titled Tuesday Blitz July 18 Late 2023"]
[White "Calin, Alexandru"]
[Black "Michalczak, Thomas"]
[WhiteFideId "1222961"]
[BlackFideId "4622634"]
[WhiteElo "2353"]
[BlackElo "2458"]
[Result "1-0"]
[Round "10"]
[TimeControl "180+2"]
[Date "2023.07.18"]
[WhiteClock "0:01:18"]
[BlackClock "0:00:00"]
[Board "80"]

1. e4 {[%clk 0:02:29]}  e5 {[%clk 0:02:59]} 2. Nf3 {[%clk 0:02:29]}  Nc6 {[%clk 0:02:59]} 3. Bc4 {[%clk 0:02:29]}  Nf6 {[%clk 0:02:59]} 4. Ng5 {[%clk 0:02:29]}  d5 {[%clk 0:02:57]} 5. exd5 {[%clk 0:02:30]}  Na5 {[%clk 0:02:58]} 6. d3 {[%clk 0:02:31]}  h6 {[%clk 0:02:57]} 7. Nf3 {[%clk 0:02:31]}  e4 {[%clk 0:02:56]} 8. Qe2 {[%clk 0:02:32]}  Nxc4 {[%clk 0:02:50]} 9. dxc4 {[%clk 0:02:33]}  Bc5 {[%clk 0:02:47]} 10. Nfd2 {[%clk 0:02:33]}  O-O {[%clk 0:02:41]} 11. Nb3 {[%clk 0:02:30]}  Bg4 {[%clk 0:02:37]} 12. Qf1 {[%clk 0:02:30]}  Bb4+ {[%clk 0:02:30]} 13. c3 {[%clk 0:02:27]}  Bd6 {[%clk 0:02:22]} 14. h3 {[%clk 0:02:26]}  Bh5 {[%clk 0:02:15]} 15. g4 {[%clk 0:02:25]}  Bg6 {[%clk 0:02:16]} 16. Be3 {[%clk 0:02:26]}  Re8 {[%clk 0:02:06]} 17. N1d2 {[%clk 0:02:26]}  b6 {[%clk 0:02:04]} 18. O-O-O {[%clk 0:02:24]}  Qd7 {[%clk 0:01:58]} 19. Qg2 {[%clk 0:02:23]}  Qa4 {[%clk 0:01:57]} 20. Kb1 {[%clk 0:02:22]}  Nd7 {[%clk 0:01:22]} 21. h4 {[%clk 0:02:07]}  Ne5 {[%clk 0:01:09]} 22. h5 {[%clk 0:02:05]}  Bh7 {[%clk 0:01:09]} 23. g5 {[%clk 0:02:06]}  hxg5 {[%clk 0:00:55]} 24. h6 {[%clk 0:02:06]}  g4 {[%clk 0:00:41]} 25. hxg7 {[%clk 0:02:03]}  Qd7 {[%clk 0:00:20]} 26. Ka1 {[%clk 0:01:47]}  Qf5 {[%clk 0:00:20]} 27. Nd4 {[%clk 0:01:47]}  Qg6 {[%clk 0:00:20]} 28. Rh6 {[%clk 0:01:45]}  Qxg7 {[%clk 0:00:19]} 29. Rdh1 {[%clk 0:01:46]}  Bg6 {[%clk 0:00:18]} 30. Nxe4 {[%clk 0:01:41]}  Nxc4 {[%clk 0:00:15]} 31. Rh8+ {[%clk 0:01:28]}  Qxh8 {[%clk 0:00:15]} 32. Rxh8+ {[%clk 0:01:28]}  Kxh8 {[%clk 0:00:16]} 33. Qh1+ {[%clk 0:01:28]}  Kg8 {[%clk 0:00:14]} 34. Nf6+ {[%clk 0:01:29]}  Kf8 {[%clk 0:00:00]} 35. Nc6 {[%clk 0:01:18]} 1-0


[Site "https://www.chess.com"]

[Event "Titled Tuesday Blitz July 18 Late 2023"]
[White "Gaal, Zsoka"]
[Black "Slovineanu, Viacheslav"]
[WhiteFideId "777765"]
[BlackFideId "13900510"]
[WhiteElo "2450"]
[BlackElo "2338"]
[Result "0-1"]
[Round "10"]
[TimeControl "180+2"]
[Date "2023.07.18"]
[WhiteClock "0:00:11"]
[BlackClock "0:00:18"]
[Board "81"]

1. Nf3 {[%clk 0:02:56]}  d5 {[%clk 0:02:59]} 2. b3 {[%clk 0:02:55]}  Nf6 {[%clk 0:02:58]} 3. g3 {[%clk 0:02:56]}  e6 {[%clk 0:02:54]} 4. Bb2 {[%clk 0:02:56]}  Be7 {[%clk 0:02:54]} 5. Bg2 {[%clk 0:02:57]}  O-O {[%clk 0:02:54]} 6. O-O {[%clk 0:02:58]}  b6 {[%clk 0:02:53]} 7. c4 {[%clk 0:02:58]}  Bb7 {[%clk 0:02:53]} 8. d4 {[%clk 0:02:57]}  Nbd7 {[%clk 0:02:45]} 9. Nbd2 {[%clk 0:02:56]}  dxc4 {[%clk 0:02:44]} 10. Nxc4 {[%clk 0:02:55]}  c5 {[%clk 0:02:43]} 11. Rc1 {[%clk 0:02:50]}  Rc8 {[%clk 0:02:40]} 12. e3 {[%clk 0:02:44]}  cxd4 {[%clk 0:02:24]} 13. Nxd4 {[%clk 0:02:45]}  Bxg2 {[%clk 0:02:24]} 14. Kxg2 {[%clk 0:02:46]}  Nc5 {[%clk 0:02:24]} 15. Qe2 {[%clk 0:02:43]}  Qd5+ {[%clk 0:02:22]} 16. f3 {[%clk 0:02:43]}  Rfd8 {[%clk 0:02:17]} 17. Rfd1 {[%clk 0:02:43]}  Qb7 {[%clk 0:02:05]} 18. e4 {[%clk 0:02:42]}  h6 {[%clk 0:02:02]} 19. Nb5 {[%clk 0:02:22]}  Ne8 {[%clk 0:01:52]} 20. Rxd8 {[%clk 0:02:07]}  Rxd8 {[%clk 0:01:51]} 21. Rd1 {[%clk 0:02:08]}  Rxd1 {[%clk 0:01:47]} 22. Qxd1 {[%clk 0:02:09]}  a6 {[%clk 0:01:47]} 23. Nd4 {[%clk 0:01:59]}  b5 {[%clk 0:01:36]} 24. Na5 {[%clk 0:01:59]}  Qc7 {[%clk 0:01:32]} 25. Ndc6 {[%clk 0:01:52]}  Bf6 {[%clk 0:01:30]} 26. e5 {[%clk 0:01:52]}  Be7 {[%clk 0:01:23]} 27. Nxe7+ {[%clk 0:01:52]}  Qxe7 {[%clk 0:01:22]} 28. Bd4 {[%clk 0:01:30]}  Qc7 {[%clk 0:01:13]} 29. b4 {[%clk 0:01:15]}  Nd7 {[%clk 0:01:06]} 30. Qe2 {[%clk 0:01:10]}  Nb6 {[%clk 0:01:02]} 31. Nb3 {[%clk 0:01:09]}  Nd5 {[%clk 0:00:57]} 32. a3 {[%clk 0:01:08]}  Qc6 {[%clk 0:00:50]} 33. Nc5 {[%clk 0:01:08]}  Nec7 {[%clk 0:00:49]} 34. Qe4 {[%clk 0:01:04]}  Ne7 {[%clk 0:00:35]} 35. Qd3 {[%clk 0:00:39]}  Qd5 {[%clk 0:00:33]} 36. g4 {[%clk 0:00:39]}  Nc6 {[%clk 0:00:31]} 37. Bc3 {[%clk 0:00:32]}  Qa2+ {[%clk 0:00:26]} 38. Kg3 {[%clk 0:00:26]}  Nd5 {[%clk 0:00:26]} 39. Nxa6 {[%clk 0:00:16]}  Qxa3 {[%clk 0:00:24]} 40. Qxb5 {[%clk 0:00:16]}  Qxc3 {[%clk 0:00:21]} 41. Nc5 {[%clk 0:00:17]}  Nxe5 {[%clk 0:00:18]} 42. Qe8+ {[%clk 0:00:11]}  Kh7 {[%clk 0:00:18]} 0-1


[Site "https://www.chess.com"]